Cogmind - Beta 16.1 @@@ ROGUE MODE // 2026.03.30 @ 16:45:13 Player: Thqwib-Linux Result: Self-destructed Performance ------------- Evolutions (2) 1000 Regions Visited (5) 1000 Robots Destroyed (54) 270 Value Destroyed (1385) 1385 Prototype IDs (25) 500 Alien Tech Used (0) 0 Bonus (300) 300 TOTAL SCORE: 4455 Bonus ------- Aligned with FarCom 300 Cogmind --------- Core Integrity 249/550 Matter 300/300 Energy 50/125 System Corruption 2% Temperature Cool (29) Movement Hovering (170) Ox2 Location -8/Materials Parts ------- > --- POWER (1) -------- Light Ion Engine > --- PROPULSION (4) --- Aerolev Unit > --- UTILITY (3) ------ Hacking Suite > --- WEAPON (3) ------- YOLO Cannon Ripper > --- INVENTORY (5) ---- Improved Power Shielding Hacking Suite Beam Rifle Beam Cannon Shotgun Peak State ------------ > --- POWER ------------ Nuclear Core > --- PROPULSION ------- Aerolev Unit Aerolev Unit Aerolev Unit Aerolev Unit > --- UTILITY ---------- Improved Power Shielding Hacking Suite > --- WEAPON ----------- YOLO Cannon Ripper > --- INVENTORY -------- Reaction Control System Hacking Suite Beam Rifle Beam Cannon Shotgun [Rating: 50] Favorites ----------- Power Ion Engine Engine Ion Engine Power Core Nuclear Core Propulsion Light Treads Treads Light Treads Leg Aluminum Leg Wheel Wheel Hover Unit Aerolev Unit Utility Large Storage Unit Device Heat Sink Storage Large Storage Unit Hackware Hacking Suite Protection Light Armor Plating Weapon Beam Cannon Energy Gun Small Laser Energy Cannon Beam Cannon Ballistic Gun Light Assault Rifle Launcher Grenade Launcher Slashing Weapon Ripper Build | -11 -10 -10 -10 -9 -8 ------- Run | Yrd Mat Min Exi Min Mat Slots Evolved 4 | . . . . . 4 Power . | . . . . . . Propulsion 2 | . . . . . 2 Utility 1 | . . . . . 1 Weapon 1 | . . . . . 1 Parts Attached 44 | 4 9 . 1 5 25 Power 5 | . 3 . . . 2 Engine 3 | . 2 . . . 1 Core 2 | . 1 . . . 1 Reactor . | . . . . . . Propulsion 13 | 2 . . . 3 8 Treads 6 | 2 . . . . 4 Leg . | . . . . . . Wheel 1 | . . . . 1 . Hover 6 | . . . . 2 4 Flight . | . . . . . . Utility 11 | 1 4 . 1 . 5 Device 5 | 1 2 . . . 2 Storage 2 | . 1 . 1 . . Processor . | . . . . . . Hackware 1 | . . . . . 1 Protection 3 | . 1 . . . 2 Artifact . | . . . . . . Weapon 15 | 1 2 . . 2 10 Energy Gun 3 | 1 1 . . . 1 Energy Cannon 4 | . 1 . . 1 2 Ballistic Gun 5 | . . . . 1 4 Ballistic Cannon . | . . . . . . Launcher 2 | . . . . . 2 Special Weapon . | . . . . . . Impact Weapon . | . . . . . . Slashing Weapon 1 | . . . . . 1 Piercing Weapon . | . . . . . . Special Melee Weapon . | . . . . . . Unidentified Prototypes 2 | . . . . . 2 Parts Lost 16 | . 3 . . 2 11 Power 3 | . 2 . . . 1 Propulsion 8 | . . . . 2 6 Utility 4 | . 1 . . . 3 Weapon 1 | . . . . . 1 Highest Loss Streak 4 | . 1 . . 2 4 To Critical Strikes 1 | . . . . 1 . Average Backups 10 | 1 7 12 14 13 12 Power . | 1 . . . 1 . Propulsion 2 | . 1 2 2 1 3 Utility 3 | . 3 5 4 4 2 Weapon 4 | . 1 5 7 7 5 Tool/Special . | . . . . . . Unused Backups 21 | 11 1 . 2 1 6 Power 4 | 1 1 . . 1 1 Propulsion 7 | 6 . . . . 1 Utility 4 | 1 . . 1 . 2 Weapon 6 | 3 . . 1 . 2 Tool/Special . | . . . . . . Average Slot Usage (%) 94 | . 99 100 100 90 84 Engine 9 | . 9 14 14 14 4 Core 2 | . 4 . . . 3 Treads 22 | . 28 28 28 3 17 Wheel 1 | . . . . 7 3 Hover 2 | . . . . 8 3 Device 11 | . 11 14 14 14 7 Storage 12 | . 14 14 14 14 8 Protection 2 | . 2 . . . 6 Energy Gun 8 | . 14 14 14 2 . Energy Cannon 8 | . 2 14 14 14 8 Ballistic Gun 9 | . 11 . . 11 15 Peak Build Rating 50 | 7 10 9 11 11 50 Average Rating 12 | 6 8 8 10 10 21 On Entrance 8 | 6 7 8 9 11 10 Avg Prop Armor Cover (%) 5 | . . . . 6 5 Naked Turns . | . . . . . . Heaviest Build 40 | 14 31 30 30 30 40 Greatest Support 83 | 40 40 40 40 40 83 Greatest Overweight (x) 3 | . . . . 2 3 Average Overweight (x) . | . . . . 1 . Largest Inventory Capacity 15 | 8 15 15 15 15 15 Average Capacity 13 | 8 11 15 15 15 14 Most Carried 15 | 7 12 14 15 15 15 Average Carried 11 | 1 7 13 14 14 13 Final Capacity 15 | 8 15 15 15 15 5 Final Carried 15 | 2 11 14 15 15 5 Class Distribution -------------------- 66% | Mutant 17% | Scavenger-Skirmisher 10% | Scavenger-Mutant 5% | Skirmisher Dominant Class ---------------- Mutant | -10/Materials Mutant | -10/Mines Mutant | -10/Exiles Scavenger-Mutant | -9/Mines Scavenger-Skirmisher | -8/Materials Resources | -11 -10 -10 -10 -9 -8 ----------- Run | Yrd Mat Min Exi Min Mat Matter Collected 977 | 245 162 . . 55 515 Remotely . | . . . . . . Salvage Created 1552 | 45 620 . . 74 813 Parts 101 | 7 34 . . 9 51 Haulers Intercepted 3 | . 2 . . . 1 Recyclers Shooed 1 | . 1 . . . . Parts Field Recycled . | . . . . . . Retrieved Matter . | . . . . . . Parts Self-Destructed . | . . . . . . Prevented . | . . . . . . Parts Restored . | . . . . . . Kills | -11 -10 -10 -10 -9 -8 ------- Run | Yrd Mat Min Exi Min Mat Combat Hostiles Destroyed 36 | . 11 . . 4 21 Melee 2 | . . . . . 2 Guns 17 | . 8 . . 2 7 Cannons 7 | . . . . 2 5 AOE 9 | . 2 . . . 7 Classes Destroyed 13 | 1 5 . . 1 6 Worker 6 | . 3 . . 1 2 Builder 1 | . . . . . 1 Tunneler 3 | 3 . . . . . Hauler 3 | . 2 . . . 1 Recycler 1 | . . . . . 1 Mechanic 1 | . 1 . . . . Operator 3 | . 2 . . . 1 Swarmer 8 | . . . . 4 4 Grunt 22 | . 11 . . . 11 Brawler 1 | . . . . . 1 Protector 2 | . . . . . 2 Sentry 2 | . . . . . 2 Hunter 1 | . . . . . 1 Best Kill Streak 10 | 2 4 . . 4 10 Combat Bots Only 9 | . 3 . . 4 9 Max Kills in Single Turn 4 | 1 4 . . 1 3 Gunslinging . | . . . . . . Exploded 3 | . 2 . . . 3 Melee 1 | . . . . . 1 Uniques/NPCs Destroyed . | . . . . . . Combat | -11 -10 -10 -10 -9 -8 -------- Run | Yrd Mat Min Exi Min Mat Hostile Shots Fired 290 | . 91 . . 14 185 Missed 87 | . 30 . . 2 55 Hits 203 | . 61 . . 12 130 Melee 6 | . . . . . 6 Projectile 197 | . 61 . . 12 124 Critical Strikes 5 | . 1 . . 1 3 Damage Taken 2855 | . 844 . . 111 1900 Core 462 | . 121 . . 40 301 Absorbed by Shields . | . . . . . . Regen/Repaired (Parts) 20 | . . . . . 20 Core Remaining (%) 67 | 100 . . . 35 . Volleys Fired 135 | 10 74 . . 13 38 Largest 3 | 2 2 . . 2 3 Hottest 106 | 70 100 . . 100 106 Shots Fired 288 | 20 147 . . 26 95 Gun 239 | 20 145 . . 13 61 Cannon 44 | . 2 . . 13 29 Launcher 5 | . . . . . 5 Special . | . . . . . . Kinetic 148 | 10 72 . . 5 61 Thermal 135 | 10 75 . . 21 29 Explosive 5 | . . . . . 5 Electromagnetic . | . . . . . . Robot Hit Streak 14 | 5 10 . . 3 14 Robot Miss Streak 5 | 5 3 . . 4 4 Penetration Max . | . . . . . . Secondary Targets 2 | . 1 . . . 1 Max Gunslinging Chain 1 | . 1 . . . 1 Shots Hit Robots 184 | 10 91 . . 11 72 Core Hits 107 | 3 35 . . 6 63 Critical Kills 1 | . . . . . 1 Critical Parts Destroyed . | . . . . . . Critical Strikes 5 | 1 2 . . . 2 Burn 3 | 1 2 . . . . Destroy 1 | . . . . . 1 Sever 1 | . . . . . 1 Melee Attacks 6 | . . . . . 6 Impact . | . . . . . . Slashing 6 | . . . . . 6 Piercing . | . . . . . . Sneak Attacks 1 | . . . . . 1 Combat Hostiles . | . . . . . . Follow-up Attacks . | . . . . . . Damage Inflicted 4703 | 131 1543 . . 165 2864 Guns 1875 | 131 937 . . 50 757 Cannons 630 | . 17 . . 103 510 Explosions 1932 | . 589 . . . 1343 Melee 254 | . . . . . 254 Ramming 12 | . . . . 12 . Kinetic 1187 | 31 392 . . 7 757 Thermal 2157 | 100 1151 . . 146 760 Explosive 1093 | . . . . . 1093 Electromagnetic . | . . . . . . Impact . | . . . . . . Slashing 254 | . . . . . 254 Piercing . | . . . . . . Highest Corruption 2 | . . . . . 2 Average Corruption 2 | . . . . . 2 Corruption Purged . | . . . . . . Corruption Blocked . | . . . . . . Effects 2 | . . . . . 2 Energy Discharges 1 | . . . . . 1 Data Loss (minor) 1 | . . . . . 1 Overload Shots . | . . . . . . Overflow Damage 348 | . 132 . . . 216 Projectiles 136 | . . . . . 136 Explosions 184 | . 132 . . . 52 Melee 28 | . . . . . 28 Knockbacks . | . . . . . . Impact . | . . . . . . Kinetic . | . . . . . . Secondary . | . . . . . . Self-Inflicted Damage 154 | . 75 . . 6 73 Shots 2 | . 1 . . . 1 Rammed 1 | . . . . 1 . Targets Rammed 1 | . . . . 1 . Kicked . | . . . . . . Crushed . | . . . . . . Highest Temperature 324 | 80 314 . . 72 324 Average Temperature 82 | 30 74 . . 31 125 Received Heat Transfer 1053 | . 459 . . . 594 Effects 2 | . . . . . 2 Energy Bleed 2 | . . . . . 2 Siege Activations . | . . . . . . Martial Activations . | . . . . . . Shielding Activations . | . . . . . . Robots Disrupted . | . . . . . . Combat Hostiles . | . . . . . . Robots Corrupted . | . . . . . . Combat Hostiles . | . . . . . . Parts Fried . | . . . . . . Impact Corruptions . | . . . . . . Robots Melted 1 | . 1 . . . . Combat Hostiles 1 | . 1 . . . . Parts Melted 4 | 1 2 . . . 1 Heat Transferred 4053 | 370 2104 . . 322 1257 Parts Sabotaged . | . . . . . . Parts Stolen . | . . . . . . Parts Stripped . | . . . . . . Power Chain Reactions . | . . . . . . Alert | -11 -10 -10 -10 -9 -8 ------- Run | Yrd Mat Min Exi Min Mat Maximum Alert Level 1 | . . . . . 1 Low Security (%) 96 | 100 100 100 . 100 87 Level 1 3 | . . . . . 12 Level 2 . | . . . . . . Level 3 . | . . . . . . Level 4 . | . . . . . . Level 5 . | . . . . . . High Security . | . . . . . . Max Security . | . . . . . . Peak Influence 343 | 10 189 39 . 110 343 Initial 39 | . . 39 . . . Average 71 | 1 108 9 . 39 58 Influence Increases 1266 | 15 463 . . 135 653 Destroy 0b10 Robot/C 680 | . 220 . . 80 380 Destroy 0b10 Robot/NC 100 | 15 40 . . 5 40 Destroy Leader 176 | . 64 . . 20 92 Successful Hack 10 | . 10 . . . . Disable Machine 45 | . 45 . . . . Destroy Structure 60 | . 24 . . . 36 Lose Combat Pursuer 195 | . 60 . . 30 105 Influence Decreases 933 | 15 361 102 . 135 320 Entered New Map 63 | . . 63 . . . Time Decay 720 | 15 331 39 . 125 210 Lost Part 150 | . 30 . . 10 110 Squads Dispatched 10 | . 3 . . . 7 Investigation 1 | . . . . . 1 Extermination . | . . . . . . Reinforcement 6 | . 3 . . . 3 Assault 2 | . . . . . 2 Garrison 1 | . . . . . 1 Intercept . | . . . . . . Searches Triggered . | . . . . . . Construction Impeded 1 | . . . . . 1 Haulers Reinforced . | . . . . . . Active Scanning Responses . | . . . . . . Cargo Convoy Interrupts . | . . . . . . Stealth | -11 -10 -10 -10 -9 -8 --------- Run | Yrd Mat Min Exi Min Mat Distress Signals 5 | . 2 . . . 3 Communications Jammed . | . . . . . . Distress Signals . | . . . . . . Times Spotted 84 | . 28 . . 6 50 Peak Tracking Total 17 | . 6 . . 6 17 Tactical Retreats 7 | . 3 . . 1 3 Traps | -11 -10 -10 -10 -9 -8 ------- Run | Yrd Mat Min Exi Min Mat Traps Triggered 1 | . 1 . . . . Indirectly . | . . . . . . Trap Hack Attempts . | . . . . . . Triggered . | . . . . . . Disarmed . | . . . . . . Reprogrammed . | . . . . . . Reused . | . . . . . . Traps Extracted . | . . . . . . Installed . | . . . . . . Triggered . | . . . . . . Machines | -11 -10 -10 -10 -9 -8 ---------- Run | Yrd Mat Min Exi Min Mat Machines Disabled 3 | . 3 . . . . Max in Single Turn 3 | . 3 . . . . Garrison Access 1 | . . . . . 1 Machines Repaired . | . . . . . . Machines Dismantled . | . . . . . . Machines Sabotaged . | . . . . . . Overloaded Fab Kills . | . . . . . . Hacking | -11 -10 -10 -10 -9 -8 --------- Run | Yrd Mat Min Exi Min Mat Machines Accessed 6 | . 2 . 1 . 3 Terminals 3 | . 2 . . . 1 Fabricators . | . . . . . . Repair Stations 1 | . . . . . 1 Recycling Units . | . . . . . . Scanalyzers . | . . . . . . Garrison Access 1 | . . . . . 1 Total Hacks 18 | . 7 . 1 . 10 Successful 7 | . 2 . 1 . 4 Failed 11 | . 5 . . . 6 Catastrophic 1 | . 1 . . . . Database Lockouts . | . . . . . . Manual 7 | . 4 . 1 . 2 Terminals 9 | . 7 . . . 2 Fabricators . | . . . . . . Repair Stations 6 | . . . . . 6 Recycling Units . | . . . . . . Scanalyzers . | . . . . . . Garrison Access 2 | . . . . . 2 Terminal Hacks 2 | . 1 . 1 . . Hauler Manifests 1 | . 1 . . . . Proto ID Catalog 1 | . . . 1 . . Fabricator Hacks . | . . . . . . Repair Station Hacks 4 | . . . . . 4 Scan Component 3 | . . . . . 3 Repair 1 | . . . . . 1 Recycling Unit Hacks . | . . . . . . Scanalyzer . | . . . . . . Garrison Access Hacks . | . . . . . . Unauthorized Hacks 1 | . 1 . . . . Terminals 1 | . 1 . . . . Botnet 1 | . 1 . . . . Fabricators . | . . . . . . Repair Stations . | . . . . . . Recycling Units . | . . . . . . Scanalyzers . | . . . . . . Garrison Access . | . . . . . . Data Cores Recovered 1 | . 1 . . . . Used . | . . . . . . Hacking Detections 5 | . 2 . . . 3 Full Trace Events 1 | . . . . . 1 Feedback Events . | . . . . . . Feedback Blocked . | . . . . . . Robot Schematics Acquired . | . . . . . . Robots Built . | . . . . . . Authchips . | . . . . . . Time . | . . . . . . Total Robot Build Rating . | . . . . . . Part Schematics Acquired . | . . . . . . Parts Built . | . . . . . . Authchips . | . . . . . . Time . | . . . . . . Total Part Build Rating . | . . . . . . Part Studies Acquired . | . . . . . . Parts Repaired 1 | . . . . . 1 Time 26 | . . . . . 26 Parts Recycled . | . . . . . . Recycled Matter . | . . . . . . Retrieved Matter . | . . . . . . Retrieved Components . | . . . . . . Parts Scanalyzed . | . . . . . . Part Schematics Acquired . | . . . . . . Parts Damaged . | . . . . . . Bothacking | -11 -10 -10 -10 -9 -8 ------------ Run | Yrd Mat Min Exi Min Mat Used RIF Installer . | . . . . . . Robots Hacked . | . . . . . . Non-combat . | . . . . . . Combat . | . . . . . . Robot Hacks Applied . | . . . . . . Relay Couplers Released 3 | . . . . . 3 Machine Destruction 3 | . . . . . 3 Fabnet Peak Effective % . | . . . . . . Robots Rewired . | . . . . . . Allies Hacked . | . . . . . . Hacks Repelled . | . . . . . . Allies | -11 -10 -10 -10 -9 -8 -------- Run | Yrd Mat Min Exi Min Mat Total Allies . | . . . . . . Largest Group . | . . . . . . Highest-Rated Group . | . . . . . . Highest-Rated Ally . | . . . . . . Total Orders . | . . . . . . Ally Attacks . | . . . . . . Total Damage . | . . . . . . Kills . | . . . . . . Allies Corrupted . | . . . . . . Allies Melted . | . . . . . . Intel | -11 -10 -10 -10 -9 -8 ------- Run | Yrd Mat Min Exi Min Mat Active Infowar (turns) 331 | 20 311 . . . . Seismic 331 | 20 311 . . . . Robot Analysis Total . | . . . . . . Derelict Logs Recovered 1 | . . 1 . . . Drone Launches . | . . . . . . Drone Recoveries . | . . . . . . Exploration | -11 -10 -10 -10 -9 -8 ------------- Run | Yrd Mat Min Exi Min Mat Turns Passed 2766 | 97 1011 195 424 328 711 Spaces Moved 1472 | 38 446 121 263 216 388 Core . | . . . . . . Treads 1052 | 38 446 121 263 18 166 Legs . | . . . . . . Wheels 262 | . . . . 150 112 Hover 158 | . . . . 48 110 Flight . | . . . . . . Fastest Speed 38 | 160 160 160 160 110 38 Average Speed 143 | 160 160 160 160 128 115 Slowest Speed 240 | 160 160 160 160 176 240 Overloaded Moves . | . . . . . . Propulsion Burnouts . | . . . . . . Robots Hopped . | . . . . . . Potential Cave-ins . | . . . . . . Cave-ins Triggered . | . . . . . . Exploration Rate (%) 39 | 3 52 38 65 47 33 Regions Visited 5 Branch Regions 3 Pre-discovered Areas 1 | . . 1 . . . Known Exits Taken . | . . . . . . Unknown Exits Taken 5 | 1 1 1 1 1 . Scrap Searched 3 | . . 2 . 1 . Spaces Dug 1 | . . . . . 1 Terrain Destroyed 58 | . 24 . . . 34 Melee 1 | . . . . . 1 Projectile . | . . . . . . AOE 57 | . 24 . . . 33 Terrain Rammed . | . . . . . . Walls Destroyed . | . . . . . . Machines Disabled . | . . . . . . Actions | -11 -10 -10 -10 -9 -8 --------- Run | Yrd Mat Min Exi Min Mat Total 1864 | 59 609 123 268 243 562 Wait 143 | . 64 . . . 79 Move 1467 | 37 445 120 262 215 388 Hop . | . . . . . . Pick Up 28 | 1 11 3 2 3 8 Fast Attach 16 | 1 3 . . 2 10 Attach 13 | 2 2 . . 2 7 Detach 7 | 2 1 . . 2 2 Swap 19 | 1 5 . 1 1 11 Drop 29 | 5 4 . 3 4 13 Fire 135 | 10 74 . . 13 38 Melee 6 | . . . . . 6 Ram 1 | . . . . 1 . Kick . | . . . . . . Crush . | . . . . . . Escape Stasis . | . . . . . . Rewire . | . . . . . . Trap . | . . . . . . Miscellaneous . | . . . . . . Route ------- -11/Scrapyard -10/Materials -10/Mines (discovered 2 exits: [*Mat] / *Exi) -10/Exiles -9/Mines -8/Materials History --------- Turn | Location | Event 9 | -11/Scrapyard | Discovered new exit (range 3) 98 | -11/Scrapyard | Entered Materials 308 | -10/Materials | Build established: Mutant 351 | -10/Materials | Discovered new exit (range 13) 898 | -10/Materials | Derelicts attacked the area 1109 | -10/Materials | Entered Mines 1159 | -10/Mines | YI-UF0 nonchalantly dropped a Grenade Launcher on the ground 1196 | -10/Mines | A weapon hastily lodged in a ceiling crevice suddenly fell to the ground 1205 | -10/Mines | Discovered new exit (range 6) 1212 | -10/Mines | Learned location of Storage (-7) 1298 | -10/Mines | Deemed a non-threat by the Exiles lab entrance 1298 | -10/Mines | Discovered new exit (range 5) 1304 | -10/Mines | Entered Exiles 1347 | -10/Exiles | Met 8R-AWN 1373 | -10/Exiles | Met EX-HEX 1416 | -10/Exiles | Met EX-BIN 1437 | -10/Exiles | Aligned with FarCom system 1438 | -10/Exiles | Given EX-Vault access code 1475 | -10/Exiles | Opened EX-Vault 1491 | -10/Exiles | Found YOLO Cannon 1522 | -10/Exiles | Warned to stay clear of 0b10 Research branches 1573 | -10/Exiles | Met EX-DEC 1706 | -10/Exiles | Discovered new exit (range 14) 1728 | -10/Exiles | Left Exiles lab with YOLO Cannon 1728 | -10/Exiles | Entered Mines 1770 | -9/Mines | Core integrity fell below 50% 2052 | -9/Mines | Discovered new exit (range 4) 2056 | -9/Mines | Entered Materials 2056 | -8/Materials | Evolved 4 slots: Propulsion x2, Utility x1, Weapon x1 2139 | -8/Materials | Repaired Ion Engine 2561 | -8/Materials | Garrison activated, responded to threat 2613 | -8/Materials | Build established: Scavenger-Skirmisher 2646 | -8/Materials | Destroyed 9 combat bots 2678 | -8/Materials | Lost 4 parts (2n1u1w) 2760 | -8/Materials | Core integrity fell below 50% 2767 | -8/Materials | Self-destructed Last Messages --------------- 02756_ G-47 Trooper Aluminum Leg severed. 02757_ M-13 Machinist repairs B-36 Bruiser. 02758_ G-47 Trooper destroyed. 02760_ M-13 Machinist repairs B-36 Bruiser Lgt. Armor Plating. 02761_ Aerolev Unit destroyed. 02763_ Destroyed Carbon-fiber Leg. 02763_ G-50 Soldier destroyed. 02763_ Aerolev Unit destroyed. 02763_ Destroyed Aerolev Unit. 02763_ Destroyed Flight Unit. 02763_ S-10 Pest destroyed. 02763_ Destroyed Lgt. Ion Engine. 02763_ S-10 Pest destroyed. 02763_ Destroyed Flight Unit. 02764_ U-05 Engineer lays Concrete. 02764_ G-47 Trooper destroyed. 02765_ U-05 Engineer lays Concrete. 02766_ U-05 Engineer builds a Wall. 02766_ U-05 Engineer lays Concrete. 02767_ Reaction Control System destroyed. Map ----- +----------------------------------------------------+ | ?????????????????????????????????????????????????? | | ?????????????????????????????????????????????????? | | ?????????????????????????????????????????????????? | | ?????????????????????????????????????????????????? | | ?????????????????????????????????????????????????? | | ?????????????????????????????????????????????????? | | ?????????????????????????????????????????????????? | | ?????????????????????????????????????????????????? | | ?????????????????????????????????????????????????? | | ?????????????????????????????????????????????????? | | ?????????????????????????????????????????????????? | | ?????????????????????????????????????????????????? | | ?????????????????????????????????????????????????? | | ?????????????????????????????????????????????????? | | ?????????????????????????????????????????????????? | | ?????????????????????###?????????????????????????? | | ????????????????????##"#######???????????????????? | | ????????????????????#u #???????????????????? | | ????????????????????# u """ #???????????????????? | | ????????????????????# """"" #????##+#####???????? | | ????????????????????# """"" #????# ????????? | | ????????????????????# s"""""s#????+ ?????????? | | ????????????????????# s""" #????# ??????????? | | ????????????????????# s% %*#????# #??+###????? | | ????????????????????# u[ !#????# #?? #????? | | ????????????????????# *@[ #??### # #????? | | ????????????????????###;;!;;##### # #== #????? | | ???????????##########?#;!b% u #=! #????? | | ??????????? ! ; = %%# #????? | | ??????????? ; bg %= # """ #????? | | ??????????? /l m######## *=#!""" #????? | | ??????????? # #????? # #!""" #????? | | ??????????? #a #??????# !=# #????? | | ????????################ ## ??? # %############ | | ??????? u ## #### | | ??????? c [ =##### ## = | | ??????? ![ =%!%%=%= % ! | | ?????????###############k #########+############# | | ???????????????????????# #### [%[=[ ##????# | | ???????????????????????# #??## [ ** [ #????# | | ????????????########???# #???## * ! ##????# | | ????????????# #???# #????# %%% #?????# | | ????????????# """ #???# #????# "! !""" #?????# | | ????????????# """ #???# #????# "G"!""" #?????# | | ????????????# """ #???# #????# " """ #?????## | | ????????????# """ ]#???# = #????# #??????? | | ?"??????????# #???#*% #????###########??????? | | ##########+####### #?????????????????????? | | #?????????????????????? | | = #?????????????????????? | +----------------------------------------------------+ Best States ------------- Heat Dissipation 45 Energy Generation 14 Energy Capacity 250 Matter Stores 300 Matter Capacity 300 Sight Range 16 Terrain Scan Density 10 Armor Coverage 150 Evasion (%) 65 Recoil Reduction 4 Offensive Hacking 10 Item Schematics ----------------- None Robot Schematics ------------------ None Fabricated ------------ Nothing Repaired ---------- Ion Engine | 66% | -8/Materials Studied --------- None Alien Tech Used ----------------- None Achievements -------------- None Challenges ------------ None Game ------ Seed CoolingBladeMicrothruster Manual? 0 Play Time 00:24:44 Cumulative 78.6 hours Start 2026.03.30 @ 16:04:33 End 2026.03.30 @ 16:45:13 Sessions 1 Manual Loads 0 Difficulty Rogue Special Mode None Game No. 74 Rogue 74 Adventurer 0 Explorer 0 Win Type - Total 3 Types 2/0/1/0/0/0/0/0/0/0 Lore% 52 Gallery% 42 Achievement% 38 Wizard Run 0 Options --------- Layout 0 ASCII 0 Keyboard 1 Movement Arrows Keybinds 0 Fullscreen 2 Font 18/X11Bold Map View 76x50 Zoom Use 0% Tactical HUD 1 Map Filters NONE Filters NONE Steam 1 RUN: 6e4ed64d-d7b3-4452-a601-eb7391b336a3